bitfinex/quotes_BTCUSD_20220207
["timestamp","ask_amount","ask_price","bid_price","bid_amount"]
[1644250947709,0.057151,43789.0,43780.0,0.05]
[1644250947909,0.0421,43788.0,43783.0,0.05]
[1644250948108,0.0421,43788.0,43784.0,0.08532401]
[1644250948310,0.51,43785.0,43783.0,0.04]
[1644250948508,0.0421,43784.0,43783.0,0.04]
[1644250949562,0.5421,43784.0,43783.0,0.12518123]
[1644250949768,0.5,43784.0,43783.0,0.12518123]
[1644250950561,0.5,43784.0,43783.0,0.39871465]
[1644250950762,0.14540173,43793.0,43783.0,0.72258365]
[1644250950763,0.01962989,43793.0,43783.0,0.72258365]
[1644250950968,0.01962989,43793.0,43792.0,0.04]
[1644250951163,0.01962989,43793.0,43792.0,0.09]
[1644250951765,0.01833886,43793.0,43792.0,0.09]
[1644250952363,0.107124,43795.0,43792.0,0.09]
[1644250952762,0.107124,43795.0,43792.0,0.04]
[1644250953301,0.107124,43795.0,43792.0,0.035]
[1644250953901,0.107124,43795.0,43792.0,0.085]
[1644250954102,0.107124,43795.0,43791.0,0.27368677]
[1644250954501,0.107124,43795.0,43791.0,0.0571178]
[1644250954702,0.05,43795.0,43794.0,0.035]
[1644250955103,0.05,43795.0,43793.0,0.035]
[1644250955303,0.01977849,43797.0,43793.0,0.035]
[1644250955502,0.01977849,43797.0,43791.0,0.05779311]
[1644250955703,0.01977849,43797.0,43791.0,0.0571178]
[1644250955902,0.01977849,43797.0,43792.0,0.0006581]
[1644250956503,0.015,43798.0,43792.0,0.0006581]
[1644250956504,0.057129,43796.0,43792.0,0.0006581]
[1644250956704,0.057129,43796.0,43791.0,0.0571178]
[1644250956958,0.057129,43796.0,43792.0,0.035]
[1644250957154,0.057129,43796.0,43792.0,0.03567813]
[1644250957353,0.107129,43796.0,43792.0,0.03567813]
[1644250957555,0.107129,43796.0,43792.0,0.00067813]
[1644250957760,0.05,43798.0,43795.0,0.09211828]
[1644250958056,0.07049047,43799.0,43795.0,0.20635764]
[1644250958255,0.01945259,43796.0,43795.0,0.20635764]
[1644250958454,0.01945259,43796.0,43795.0,0.17135764]
[1644250958658,0.01945259,43796.0,43795.0,0.20635764]
[1644250959255,0.01945259,43796.0,43795.0,0.17135764]
[1644250960358,0.01945259,43796.0,43795.0,0.25635764]
[1644250960558,0.02018313,43800.0,43795.0,0.55725049]
[1644250960805,0.02018313,43800.0,43798.0,0.035]
[1644250961208,0.24280674,43800.0,43798.0,0.035]
[1644250961406,0.01971376,43800.0,43798.0,0.035]
[1644250961605,0.01971376,43800.0,43798.0,0.05711529]
[1644250961806,0.01971376,43800.0,43798.0,0.09211529]
[1644250962407,0.01971376,43800.0,43798.0,0.05711529]
[1644250962707,0.03484189,43802.0,43798.0,0.05711529]
[1644250962908,0.015,43801.0,43798.0,0.05711529]
[1644250963109,0.03484189,43802.0,43798.0,0.05711529]
[1644250964008,0.03484189,43802.0,43801.0,0.14923246]
[1644250964463,0.21483189,43802.0,43801.0,0.14923246]
[1644250964655,0.26483189,43802.0,43801.0,0.14923246]
[1644250964855,0.34679189,43802.0,43801.0,0.11423246]
[1644250965054,0.26483189,43802.0,43801.0,0.11423246]
[1644250965255,0.44679189,43802.0,43801.0,0.11423246]
[1644250965457,0.82416289,43802.0,43801.0,0.10176883]
[1644250965755,0.90612289,43802.0,43801.0,0.10176883]
[1644250965954,0.82416289,43802.0,43801.0,0.10176883]
[1644250966155,0.91657493,43802.0,43801.0,0.10176883]
[1644250966363,0.15,43802.0,43801.0,0.09271008]
[1644250966559,0.24241204,43802.0,43801.0,0.09271008]
[1644250966757,0.05,43802.0,43801.0,0.09271008]
[1644250967157,0.05712,43803.0,43801.0,0.09271008]
[1644250967158,0.10712,43803.0,43801.0,0.09271008]
[1644250967359,0.05712,43803.0,43801.0,0.09271008]
[1644250967758,0.05712,43803.0,43801.0,0.09550921]
[1644250970603,1.0,43802.0,43801.0,0.09550921]
[1644250970804,1.15,43802.0,43801.0,0.09550921]
[1644250971005,1.24241204,43802.0,43801.0,0.09550921]
[1644250973564,1.24241204,43802.0,43801.0,0.2868255]
[1644250973765,1.24241204,43802.0,43801.0,0.3218255]
[1644250976017,1.15,43802.0,43801.0,0.3218255]
[1644250976417,1.26729559,43802.0,43801.0,0.3218255]
[1644250976918,1.15,43802.0,43801.0,0.3218255]
[1644250977220,1.26729102,43802.0,43801.0,0.3218255]
[1644250978020,1.26729102,43802.0,43801.0,0.2868255]
[1644250978824,1.11729102,43802.0,43801.0,0.2868255]
[1644250979024,1.0,43802.0,43801.0,0.2868255]
[1644250980257,1.05,43802.0,43801.0,0.2868255]
[1644250980457,1.16888773,43802.0,43801.0,0.2868255]
[1644250980658,1.16888773,43802.0,43801.0,0.09550921]
[1644250980858,1.26888773,43802.0,43801.0,0.09550921]
[1644250981061,1.28388773,43802.0,43801.0,0.09550921]
[1644250981259,6.81414457,43802.0,43801.0,0.00279913]
[1644250981461,6.63579057,43802.0,43801.0,0.00279913]
[1644250981658,6.63579057,43802.0,43793.0,0.1142623]
[1644250981659,0.23551752,43794.0,43793.0,0.1142623]
[1644250981862,0.0421,43796.0,43793.0,0.1142623]
[1644250983312,0.057129,43795.0,43793.0,0.1142623]
[1644250983512,0.052129,43795.0,43793.0,0.1142623]
[1644250984213,0.05,43796.0,43793.0,0.1142623]
[1644250984516,0.24755146,43797.0,43793.0,0.1142623]
[1644250984713,0.015,43796.0,43793.0,0.1142623]
[1644250984913,0.015,43796.0,43794.0,0.11426278]
[1644250985113,0.0571,43796.0,43794.0,0.11426278]
[1644250985314,0.2811145,43795.0,43794.0,0.11426278]
[1644250985514,0.0921,43796.0,43794.0,0.11426278]
[1644250985815,0.0421,43796.0,43794.0,0.11426278]
[1644250986417,0.0421,43796.0,43794.0,0.01426278]
[1644250988056,0.0421,43796.0,43795.0,0.00118556]
[1644250988255,0.31093599,43796.0,43795.0,0.00118556]
[1644250988657,0.41093599,43796.0,43795.0,0.00118556]
[1644250989457,0.057125,43798.0,43795.0,0.03618556]
[1644250989662,0.13952262,43799.0,43795.0,0.09330546]
[1644250989857,0.02063489,43799.0,43795.0,0.09330546]
[1644250990057,0.02063489,43799.0,43795.0,0.14330546]
[1644250990559,0.13696184,43801.0,43795.0,0.09403948]
[1644250990819,0.057121,43799.0,43795.0,0.09403948]
[1644250991414,0.072121,43799.0,43795.0,0.09403948]
[1644250991614,0.072121,43799.0,43795.0,0.09330546]
[1644250991814,0.072121,43799.0,43795.0,0.09403948]
[1644250991815,0.26733675,43798.0,43795.0,0.09403948]
[1644250992015,0.122121,43799.0,43795.0,0.09403948]
[1644250992217,0.222121,43799.0,43795.0,0.05903948]
[1644250992413,0.122121,43799.0,43795.0,0.05903948]
[1644250992613,0.107121,43799.0,43797.0,0.00118346]
[1644250992814,0.26503079,43798.0,43797.0,0.00118346]
[1644250993214,0.50008024,43798.0,43797.0,0.00118346]
[1644250993414,0.60008024,43798.0,43797.0,0.00118346]
[1644250994115,0.60594908,43798.0,43797.0,0.00118346]
[1644250994313,4.57361808,43798.0,43797.0,0.00118346]
[1644250994559,4.69250581,43798.0,43797.0,0.00118346]
[1644250994761,4.70359081,43798.0,43797.0,0.00118346]
[1644250994962,2.42658281,43798.0,43797.0,0.00118346]
[1644250995560,2.51736681,43798.0,43797.0,0.00118346]
[1644250995958,2.45419281,43798.0,43797.0,0.00118346]
[1644250996160,2.46919281,43798.0,43797.0,0.00118346]
[1644250997264,2.56845181,43798.0,43797.0,0.00118346]
[1644250997461,0.88119581,43798.0,43797.0,0.00118346]
[1644250997663,0.86032697,43798.0,43797.0,0.00118346]
[1644250997861,4.93039397,43798.0,43797.0,0.00114645]
[1644250998064,4.82650624,43798.0,43797.0,0.00114645]
[1644250998307,4.83720597,43798.0,43797.0,0.00114645]
[1644250998507,4.98191276,43798.0,43795.0,0.00114645]
[1644250998707,5.07086176,43798.0,43795.0,0.00114645]
[1644250998909,0.015,43796.0,43795.0,0.00041427]
[1644250999110,0.015,43796.0,43794.0,0.00073456]
[1644250999111,0.8,43795.0,43794.0,0.00073456]
[1644250999310,1.2921,43795.0,43794.0,0.00073456]
[1644250999508,8.91940458,43795.0,43794.0,0.00073456]
[1644250999707,8.50724558,43795.0,43794.0,0.00073456]
[1644250999909,8.08489658,43795.0,43794.0,0.00073456]
[1644251000107,8.08489658,43795.0,43784.0,0.05714642]
[1644251000108,0.20845882,43788.0,43785.0,0.0002449]
[1644251000308,0.20845882,43788.0,43784.0,0.05714642]
[1644251000309,0.15639,43787.0,43784.0,0.05714642]
[1644251000810,0.015,43785.0,43784.0,0.05714642]
[1644251001007,0.0571,43785.0,43784.0,0.05714642]
[1644251001607,0.33067459,43785.0,43784.0,0.05714642]
[1644251001807,0.43067459,43785.0,43784.0,0.05714642]
[1644251002262,0.41567459,43785.0,43784.0,0.05714642]
[1644251002465,0.1421,43785.0,43784.0,0.05714642]
[1644251003061,0.0421,43785.0,43784.0,0.05714642]
[1644251003461,0.0571,43785.0,43784.0,0.05714642]
[1644251004062,0.0421,43785.0,43784.0,0.05714642]
[1644251004463,0.32811078,43785.0,43784.0,0.05714642]
[1644251004965,0.42811078,43785.0,43784.0,0.05714642]
[1644251006812,0.42811078,43785.0,43784.0,0.00344686]
[1644251007013,0.42811078,43785.0,43767.0,0.5543]
[1644251007014,0.057147,43782.0,43767.0,0.5543]
[1644251007316,0.914294,43783.0,43778.0,0.00024536]
[1644251007317,0.107157,43780.0,43778.0,0.00024536]
[1644251007517,0.0571,43779.0,43768.0,0.00024536]
[1644251007713,0.0571,43779.0,43766.0,0.11432032]
[1644251007714,0.27034976,43769.0,43766.0,0.11432032]
[1644251007912,0.0421,43768.0,43766.0,0.00024536]
[1644251008111,0.0421,43768.0,43765.0,0.00324536]
[1644251008811,0.099269,43768.0,43765.0,0.00324536]
[1644251009012,0.149269,43768.0,43765.0,0.00324536]
[1644251009211,0.057168,43767.0,43765.0,0.00324536]
[1644251009464,0.0421,43766.0,43765.0,0.003]
[1644251011661,0.25986336,43766.0,43765.0,0.003]
[1644251011862,0.25986336,43766.0,43763.0,0.00073381]
[1644251011863,0.8,43764.0,43763.0,0.00073381]
[1644251012077,0.8571,43764.0,43761.0,0.02]
[1644251012259,7.005002,43764.0,43761.0,0.02]
[1644251012461,0.02285,43763.0,43761.0,0.02]
[1644251012664,0.02285,43763.0,43762.0,8.309329]
[1644251012665,0.06495,43763.0,43762.0,8.309329]
[1644251012862,6.741336,43763.0,43762.0,8.309329]
[1644251013060,6.700736,43763.0,43762.0,7.966216]
[1644251013315,6.700736,43763.0,43762.0,7.25353648]
[1644251013316,7.758398,43763.0,43762.0,7.25353648]
[1644251013515,0.057193,43759.0,43746.0,15.3712103]
[1644251013717,0.9871,43747.0,43746.0,14.65779909]
[1644251013913,0.9871,43747.0,43746.0,12.80154519]
[1644251013914,1.49568656,43747.0,43746.0,12.80154519]
[1644251014115,11.59568656,43747.0,43746.0,12.09552016]
[1644251014313,11.52282678,43747.0,43746.0,11.42469312]
[1644251014611,11.52282678,43747.0,43746.0,10.27885503]
[1644251014612,12.5397207,43747.0,43746.0,10.27885503]
[1644251014811,12.88465127,43747.0,43746.0,10.21585503]
[1644251015011,12.77180509,43747.0,43746.0,10.16965503]
[1644251015313,12.77180509,43747.0,43746.0,9.82632503]
[1644251015314,9.57670509,43747.0,43746.0,9.82632503]
[1644251015512,7.11635353,43747.0,43746.0,7.73283309]
[1644251015711,7.57687359,43747.0,43746.0,6.57250509]
[1644251015911,7.13939057,43747.0,43746.0,6.57250509]
[1644251016111,7.20526957,43747.0,43746.0,6.57250509]
[1644251016311,6.86313957,43747.0,43746.0,6.22917509]
[1644251016511,6.87423957,43747.0,43746.0,6.22917509]
[1644251016712,6.37303857,43747.0,43746.0,5.84533577]
[1644251016977,2.52737078,43747.0,43746.0,5.84033577]
[1644251017169,1.90360194,43747.0,43746.0,5.84033577]
[1644251017367,3.46565794,43747.0,43746.0,5.84033577]
[1644251017567,2.47565794,43747.0,43746.0,5.84033577]
[1644251017767,2.46401294,43747.0,43746.0,5.84033577]
[1644251017971,2.46194294,43747.0,43746.0,5.84033577]
[1644251018168,2.60088094,43747.0,43746.0,5.84033577]
[1644251018368,4.55546894,43747.0,43746.0,5.84167426]
[1644251018669,5.83586794,43747.0,43746.0,5.84167426]
[1644251018869,2.67591556,43747.0,43746.0,5.61257924]
[1644251019068,1.63771056,43747.0,43746.0,5.61257924]
[1644251019470,0.70143656,43747.0,43746.0,5.61257924]
[1644251019873,0.30508656,43747.0,43746.0,5.61257924]
[1644251020810,0.31597356,43747.0,43746.0,5.61257924]
[1644251021211,0.20143656,43747.0,43746.0,5.64757924]
[1644251021414,0.20143656,43747.0,43746.0,5.64322357]
[1644251021614,0.05143656,43747.0,43746.0,5.64322357]
[1644251021812,0.05143656,43747.0,43746.0,5.72056388]
[1644251022012,0.05143656,43747.0,43746.0,5.97509127]
[1644251022210,0.05143656,43747.0,43746.0,6.34103559]
[1644251022611,0.05143656,43747.0,43746.0,6.0365082]
[1644251022812,0.05143656,43747.0,43746.0,5.60822357]
[1644251023013,0.06643656,43747.0,43746.0,5.60822357]
[1644251023215,0.06643656,43747.0,43746.0,5.60953534]
[1644251023216,0.05143656,43747.0,43746.0,5.60953534]
[1644251024011,0.05143656,43747.0,43746.0,5.69660232]
[1644251024471,0.05143656,43747.0,43746.0,5.73160232]
[1644251025964,0.05143656,43747.0,43746.0,4.73160232]
[1644251026966,0.05143656,43747.0,43746.0,4.60953534]
[1644251027168,0.19311656,43747.0,43746.0,4.18358181]
[1644251027471,0.05143656,43747.0,43746.0,4.18358181]
[1644251028323,0.05143656,43747.0,43746.0,4.83245507]
[1644251028516,0.05143656,43747.0,43746.0,4.83376613]
[1644251029517,0.05143656,43747.0,43746.0,5.06730007]
[1644251029919,0.04131149,43748.0,43746.0,5.06730007]
[1644251030117,0.04131149,43748.0,43747.0,0.30238515]
[1644251031321,0.04131149,43748.0,43746.0,5.06754242]
[1644251031525,0.03631149,43748.0,43746.0,5.06730007]
[1644251032365,0.03131149,43748.0,43746.0,5.01730007]
[1644251032763,0.03131149,43748.0,43746.0,5.06730007]
[1644251033163,0.03131149,43748.0,43747.0,0.3176083]
[1644251033365,0.01920776,43752.0,43748.0,0.85]
[1644251033567,0.01920776,43752.0,43751.0,0.035]
[1644251034766,0.02034708,43756.0,43751.0,0.035]
[1644251034964,0.02034708,43756.0,43755.0,0.09807786]
[1644251035165,0.02034708,43756.0,43755.0,0.15525366]
[1644251035365,0.02034708,43756.0,43755.0,0.4731086]
[1644251035814,0.02034708,43756.0,43755.0,0.15525366]
[1644251036116,0.02034708,43756.0,43755.0,0.39323106]
[1644251036916,0.02034708,43756.0,43755.0,0.15525366]
[1644251037115,0.02034708,43756.0,43755.0,0.0921758]
[1644251037315,0.015,43761.0,43755.0,0.0571758]
[1644251037516,0.015,43761.0,43759.0,0.035]
[1644251037816,0.6704,43767.0,43757.0,0.03150001]
[1644251037817,0.01849999,43766.0,43757.0,0.03150001]
[1644251038017,0.057177,43761.0,43757.0,0.03150001]
[1644251038216,0.052177,43761.0,43756.0,0.00024235]
[1644251038416,0.01849999,43759.0,43754.0,0.00024235]
[1644251038622,0.052177,43761.0,43754.0,0.05717766]
[1644251038817,0.102177,43761.0,43758.0,0.03150001]
[1644251039217,0.207623,43760.0,43758.0,0.03150001]
[1644251039471,0.218034,43760.0,43758.0,0.03150001]
[1644251039864,0.104072,43760.0,43758.0,0.03150001]
[1644251040064,0.202177,43761.0,43758.0,0.03150001]
[1644251040466,0.01849999,43759.0,43758.0,0.00024235]
[1644251040665,0.01849999,43759.0,43757.0,0.00065229]
[1644251041069,0.102177,43761.0,43756.0,0.03174236]
[1644251041270,0.01849999,43759.0,43757.0,0.03150001]
[1644251041468,0.38244512,43760.0,43757.0,0.00024235]
[1644251041667,0.38244512,43760.0,43756.0,0.00089674]
[1644251041868,0.01849999,43758.0,43756.0,0.00065439]
[1644251042069,0.057182,43757.0,43756.0,0.00065439]
[1644251042270,0.057182,43757.0,43754.0,0.00024235]
[1644251042469,0.057182,43757.0,43755.0,0.0006544]
[1644251042668,0.057182,43757.0,43756.0,0.03150001]
[1644251044115,0.06869909,43760.0,43756.0,0.24923614]
[1644251044315,0.01869909,43760.0,43759.0,0.03150001]
[1644251044716,0.04015767,43760.0,43759.0,0.03150001]
[1644251044916,0.02145858,43760.0,43759.0,0.03150001]
[1644251045318,0.02145858,43760.0,43757.0,0.00065817]
[1644251045319,0.55,43759.0,43752.0,0.11435561]
[1644251045716,0.7,43759.0,43752.0,0.11435561]
[1644251045918,0.057182,43757.0,43752.0,0.11435561]
[1644251047174,0.05734425,43757.0,43752.0,0.11435561]
[1644251047373,0.05734425,43757.0,43755.0,0.11434967]
[1644251047573,0.00016225,43757.0,43755.0,0.11434967]
[1644251048173,0.00016225,43757.0,43756.0,0.06779001]
[1644251048373,0.01833009,43759.0,43756.0,0.06779001]
[1644251048575,0.00054083,43758.0,43757.0,0.26560449]
[1644251048779,0.00054083,43758.0,43757.0,0.63947349]
[1644251049476,0.01862316,43761.0,43759.0,0.323869]
[1644251049676,0.01862316,43761.0,43758.0,0.38081457]
[1644251049878,0.01862316,43761.0,43760.0,0.05]
[1644251050276,0.01862316,43761.0,43759.0,0.05715964]
[1644251050914,0.00053986,43762.0,43759.0,0.05715964]
[1644251051916,0.01839421,43765.0,43761.0,0.25125905]
[1644251052117,0.00053986,43763.0,43762.0,0.00053435]
[1644251053118,0.02037706,43769.0,43763.0,0.05716051]
[1644251053318,0.00053986,43765.0,43763.0,0.10716051]
[1644251053518,0.00053986,43765.0,43764.0,0.22872495]
[1644251054474,0.02037706,43769.0,43765.0,0.06724554]
[1644251054665,0.00053827,43767.0,43765.0,0.06724554]
[1644251055467,0.01898683,43769.0,43765.0,0.06724554]
[1644251055669,0.00053827,43768.0,43765.0,0.06704554]
[1644251055868,0.00053827,43768.0,43765.0,0.42235137]
[1644251056671,0.01898683,43769.0,43765.0,0.42235137]
[1644251056871,0.01914381,43772.0,43765.0,0.42235137]
[1644251057073,0.00053827,43769.0,43765.0,0.42235137]
[1644251057870,0.01914381,43772.0,43765.0,0.42235137]
[1644251058072,0.00054048,43769.0,43765.0,0.42235137]
[1644251058528,0.00054048,43769.0,43764.0,0.45169604]
[1644251059129,0.01914381,43772.0,43764.0,0.45169604]
[1644251059328,0.01914381,43772.0,43764.0,0.44669604]
[1644251059329,0.00054048,43769.0,43764.0,0.44669604]
[1644251059927,0.00054048,43769.0,43765.0,0.080958]
[1644251060327,0.01914381,43772.0,43765.0,0.080958]
[1644251060528,0.00054048,43769.0,43765.0,0.080958]
[1644251061129,0.00054048,43769.0,43764.0,0.16797109]
[1644251061131,0.05,43767.0,43764.0,0.16797109]
[1644251061332,0.27619311,43768.0,43764.0,0.16797109]
[1644251061528,0.32700224,43768.0,43764.0,0.16797109]
[1644251061729,0.32700224,43768.0,43764.0,0.00150664]
[1644251061730,0.37754211,43768.0,43764.0,0.00150664]
[1644251061970,0.47754211,43768.0,43764.0,0.00150664]
[1644251062663,0.49898061,43768.0,43764.0,0.00150664]
[1644251062866,0.22197837,43768.0,43763.0,0.05866445]
[1644251063064,0.17197837,43768.0,43763.0,0.05866445]
[1644251063265,0.05,43764.0,43763.0,0.00150394]
[1644251063466,0.4470996,43764.0,43763.0,0.00150394]
[1644251063666,0.4970996,43764.0,43763.0,0.00150394]
[1644251063865,0.302974,43764.0,43763.0,0.00150394]
[1644251064066,0.252974,43764.0,43763.0,0.00150394]
[1644251064266,0.0458,43764.0,43763.0,0.00150394]
[1644251066421,0.102968,43764.0,43763.0,0.00150394]
[1644251067821,0.102968,43764.0,43762.0,0.05902086]
[1644251068423,0.057168,43764.0,43762.0,0.05902086]
[1644251068922,0.05,43763.0,43762.0,0.05902086]
[1644251069125,0.32525503,43763.0,43762.0,0.00185384]
[1644251069323,3.036382,43763.0,43762.0,0.00185384]
[1644251069571,3.615246,43763.0,43762.0,0.00185384]
[1644251069769,3.68764577,43763.0,43762.0,0.001483]
[1644251070169,3.29665287,43763.0,43762.0,0.001483]
[1644251070369,2.52534287,43763.0,43762.0,0.001483]
[1644251070669,0.5316,43763.0,43762.0,0.001483]
[1644251070868,0.2458,43763.0,43762.0,0.001483]
[1644251071076,2.265414,43763.0,43762.0,1.3e-05]
[1644251071269,5.12915801,43763.0,43748.0,0.00024193]
[1644251071472,5.12915801,43763.0,43756.0,0.00024193]
[1644251071473,0.47991162,43757.0,43756.0,0.00024193]
[1644251071674,0.171598,43756.0,43747.0,0.00024193]
[1644251071869,0.05,43748.0,43747.0,0.00024193]
[1644251072071,0.05,43748.0,43746.0,3.40380358]
[1644251072072,0.0958,43748.0,43746.0,3.40380358]
[1644251072271,0.1458,43748.0,43746.0,3.40380358]
[1644251073315,0.145017,43748.0,43746.0,3.40380358]
[1644251073514,0.057198,43747.0,43746.0,3.40380358]
[1644251073716,0.102998,43747.0,43746.0,3.40380358]
[1644251074016,0.102998,43747.0,43746.0,3.45380358]
[1644251074515,0.152998,43747.0,43746.0,3.40380358]
[1644251075617,0.152998,43747.0,43746.0,3.30380358]
[1644251078366,0.152998,43747.0,43746.0,3.3051817]
[1644251079768,0.42845217,43747.0,43746.0,3.3051817]
[1644251079968,0.152998,43747.0,43746.0,3.3051817]
[1644251080272,0.252998,43747.0,43746.0,3.3051817]
[1644251080725,0.252998,43747.0,43746.0,3.3551817]
[1644251080726,0.152998,43747.0,43746.0,3.3551817]
[1644251081218,0.102998,43747.0,43746.0,3.3551817]
[1644251081519,0.102998,43747.0,43746.0,3.60427381]
[1644251081718,0.102998,43747.0,43746.0,3.67935471]
[1644251081917,0.152998,43747.0,43746.0,3.67935471]
[1644251083219,0.057198,43747.0,43746.0,3.67935471]
[1644251083419,0.01978471,43751.0,43746.0,3.67935471]
[1644251083618,0.01978471,43751.0,43747.0,0.00024193]
[1644251084219,0.01978471,43751.0,43750.0,0.24043107]
[1644251084476,0.01978471,43751.0,43750.0,0.29043107]
[1644251084872,0.12154467,43761.0,43751.0,0.85]
[1644251085072,0.22893584,43768.0,43752.0,0.85]
[1644251085273,0.3,43767.0,43757.0,0.19347405]
[1644251085574,0.44047362,43770.0,43761.0,0.05715758]
[1644251085772,0.44047362,43770.0,43761.0,0.10715758]
[1644251086171,0.44047362,43770.0,43761.0,0.05715758]
[1644251086371,0.47,43763.0,43761.0,0.10715758]
[1644251086973,0.47,43763.0,43761.0,0.05715758]
[1644251087175,0.33150741,43762.0,43755.0,0.11434114]
[1644251087372,0.43150741,43762.0,43755.0,0.16434114]
[1644251087573,0.05,43758.0,43755.0,0.16434114]
[1644251087774,0.05,43756.0,43755.0,0.11434114]
[1644251088419,0.05,43756.0,43752.0,0.13317284]
[1644251088619,0.05,43756.0,43752.0,0.13293091]
[1644251088818,0.1,43757.0,43752.0,0.13293091]
[1644251089018,0.05,43756.0,43752.0,0.11434747]
[1644251089218,0.05,43756.0,43751.0,0.00024193]
[1644251089418,0.00063748,43757.0,43756.0,0.22093716]
[1644251089918,0.00063748,43757.0,43756.0,0.28413091]
[1644251090319,0.057175,43758.0,43756.0,0.28413091]
[1644251090320,0.107175,43758.0,43756.0,0.28413091]
[1644251090822,0.05,43757.0,43756.0,0.28413091]
[1644251091718,0.05,43757.0,43756.0,0.22093716]
[1644251091975,0.157175,43758.0,43756.0,0.22093716]
[1644251092569,0.107175,43758.0,43756.0,0.22093716]
[1644251093171,0.107175,43758.0,43756.0,0.30775868]
[1644251093471,0.107175,43758.0,43756.0,0.22246353]
[1644251095272,0.05,43757.0,43756.0,0.22246353]
[1644251095473,0.05,43757.0,43756.0,0.00152637]
[1644251095720,0.05,43757.0,43750.0,0.05]
[1644251095721,0.4,43756.0,43750.0,0.05]
[1644251095921,0.057179,43755.0,43750.0,0.05]
[1644251096130,0.057179,43755.0,43748.0,0.02131984]
[1644251096131,0.05,43752.0,43748.0,0.02131984]
[1644251096325,0.0458,43751.0,43748.0,0.02131984]
[1644251096727,0.05,43750.0,43748.0,0.02131984]
[1644251097123,0.05,43750.0,43747.0,0.26060454]
[1644251097924,0.152989,43751.0,43747.0,0.26060454]
[1644251098327,0.152989,43751.0,43749.0,0.07598869]
[1644251098328,0.102989,43751.0,43749.0,0.07598869]
[1644251098527,0.05,43750.0,43749.0,0.07598869]
[1644251098729,0.05,43750.0,43747.0,0.49613047]
[1644251098926,0.05,43750.0,43748.0,0.0006827]
[1644251099871,0.0458,43749.0,43748.0,0.0006827]
[1644251100073,0.0458,43749.0,43746.0,3.30380358]
[1644251100276,0.0458,43749.0,43746.0,3.2794863]
[1644251100974,0.0458,43749.0,43746.0,3.52599269]
[1644251101773,0.0458,43749.0,43746.0,3.2794863]
[1644251102174,0.05,43747.0,43746.0,3.2794863]
[1644251102374,0.057192,43747.0,43746.0,3.2794863]
[1644251102776,0.057192,43747.0,43746.0,3.59934953]
[1644251106419,0.056692,43747.0,43746.0,3.59934953]
[1644251108067,0.056692,43747.0,43746.0,3.60095046]
[1644251108367,0.056692,43747.0,43746.0,3.60259973]
[1644251108668,0.0958,43749.0,43746.0,3.60259973]
[1644251108669,0.05,43749.0,43746.0,3.60259973]
[1644251108867,0.057182,43750.0,43747.0,0.30875753]
[1644251109073,0.00064086,43751.0,43746.0,3.70977841]
[1644251109272,0.00064086,43751.0,43749.0,0.323869]
[1644251109467,0.00064086,43751.0,43750.0,0.36684397]
[1644251109668,0.02091411,43756.0,43750.0,0.69071297]
[1644251109868,0.02091411,43756.0,43752.0,0.54239603]
[1644251110469,0.02091411,43756.0,43752.0,0.58276538]
[1644251111117,0.00064089,43756.0,43752.0,0.58276538]
[1644251111319,0.42,43763.0,43755.0,0.05715746]
[1644251111520,0.42,43763.0,43756.0,0.35323886]
[1644251111723,0.42,43763.0,43756.0,0.40323886]
[1644251112119,0.42,43763.0,43760.0,0.25607966]
[1644251112318,0.42,43763.0,43760.0,0.30607966]
[1644251112521,0.42,43763.0,43761.0,0.24598201]
[1644251113119,0.47,43763.0,43761.0,0.24598201]
[1644251113519,0.47,43763.0,43761.0,0.31328116]
[1644251114325,0.018762,43770.0,43763.0,0.85]
[1644251114572,0.14047362,43778.0,43766.0,0.323869]
[1644251114774,0.03,43781.0,43768.0,0.114279]
[1644251114969,0.03,43781.0,43768.0,0.13478744]
[1644251115169,0.02151418,43771.0,43769.0,0.21520794]
[1644251115469,1.418e-05,43771.0,43770.0,0.323869]
[1644251115669,1.418e-05,43771.0,43770.0,0.345369]
[1644251115873,0.422,43791.0,43771.0,0.93283664]
[1644251115874,9.29e-06,43772.0,43771.0,0.93283664]
[1644251116072,0.24997096,43796.0,43771.0,0.93283664]
[1644251116073,0.78622507,43800.0,43772.0,0.85]
[1644251116272,0.5274,43800.0,43774.0,0.76074412]
[1644251116471,0.67546808,43800.0,43794.0,0.31961432]
[1644251116672,0.67546808,43800.0,43789.0,0.057114]
[1644251116673,0.5274,43800.0,43789.0,0.057114]
[1644251116873,0.5274,43800.0,43797.0,0.07531372]
[1644251117070,0.03,43798.0,43797.0,0.07531372]
[1644251117270,0.03,43798.0,43789.0,0.24348522]
[1644251117474,0.03,43798.0,43788.0,0.0458]
[1644251117673,0.05,43795.0,43788.0,0.21714006]
[1644251117872,0.05,43795.0,43790.0,0.05712227]
[1644251118322,0.00028429,43797.0,43791.0,0.06967887]
[1644251118521,0.03028429,43798.0,43794.0,0.24973631]
[1644251118722,0.00028429,43797.0,43794.0,0.24973631]
[1644251119022,0.08028429,43798.0,43794.0,0.24973631]
[1644251119222,0.05,43795.0,43794.0,0.24973631]
[1644251119425,0.05,43795.0,43789.0,0.0703895]
[1644251119622,0.05,43795.0,43789.0,0.0203895]
[1644251119821,0.05,43795.0,43789.0,0.0703895]
[1644251120642,0.05028429,43797.0,43789.0,0.02111839]
[1644251120643,0.05,43790.0,43789.0,0.02111839]
[1644251121126,0.05,43790.0,43789.0,0.0211467]
[1644251121725,0.05,43790.0,43789.0,0.02041781]
[1644251122573,0.05,43792.0,43789.0,0.02041781]
[1644251122772,0.15713,43796.0,43789.0,0.02041781]
[1644251122972,0.10713,43796.0,43789.0,0.02041781]
[1644251123174,0.05,43790.0,43789.0,0.02041781]
[1644251123774,0.00063128,43793.0,43789.0,0.02041781]
[1644251124075,0.00028429,43797.0,43789.0,0.02041781]
[1644251124274,0.00063128,43793.0,43789.0,0.02041781]
[1644251124476,0.00063128,43793.0,43785.0,0.01264743]
[1644251124477,0.6,43790.0,43785.0,0.01264743]
[1644251124873,0.75,43790.0,43785.0,0.01264743]
[1644251125274,0.75,43790.0,43784.0,0.02062584]
[1644251125275,0.15,43790.0,43784.0,0.02062584]
[1644251125474,0.132,43790.0,43786.0,0.2590759]
[1644251125919,0.032,43790.0,43786.0,0.2590759]
[1644251126319,0.05741629,43796.0,43786.0,0.2590759]
[1644251126320,0.00028429,43796.0,43786.0,0.2590759]
[1644251126621,0.00028429,43798.0,43784.0,0.02062584]
[1644251126819,0.2082286,43799.0,43784.0,0.02062584]